bitfinex/quotes_ETHUSD_20251119
["timestamp","ask_amount","ask_price","bid_price","bid_amount"]
[1763565436549,0.1999,3099.4,3098.6,0.0158621]
[1763565436798,0.1999,3099.4,3098.5,1.01999264]
[1763565436999,0.4651,3099.7,3098.5,1.01999264]
[1763565437241,0.4651,3099.7,3098.5,0.63539236]
[1763565437526,0.4651,3099.7,3098.4,0.113]
[1763565437735,0.4651,3099.7,3098.5,3.22736808]
[1763565437936,0.4651,3099.7,3098.6,0.113]
[1763565438815,0.4651,3099.7,3097.3,0.66007374]
[1763565438986,0.1999,3098.5,3097.4,0.113]
[1763565439187,0.1999,3098.5,3097.4,1.01999264]
[1763565439387,0.5065573,3098.3,3097.4,1.01999264]
[1763565439685,0.5065573,3098.3,3097.9,6.4559863]
[1763565440001,0.5065573,3098.3,3098.0,0.113]
[1763565440199,0.5065573,3098.3,3098.1,0.113]
[1763565440805,0.5065573,3098.3,3097.9,3.22799315]
[1763565440806,0.5065573,3098.3,3098.2,0.113]
[1763565441007,0.1999,3098.6,3098.2,0.113]
[1763565441213,0.4651,3098.5,3097.6,0.405504]
[1763565441526,0.4651,3098.5,3097.7,0.113]
[1763565441886,0.4651,3098.5,3097.4,3.22851053]
[1763565442093,0.4651,3098.5,3097.7,0.113]
[1763565443923,0.4651,3098.5,3097.7,3.34118969]
[1763565444235,0.4651,3098.5,3097.3,3.8909793]
[1763565444419,0.4651,3098.5,3097.4,0.113]
[1763565444621,0.4651,3098.5,3096.9,0.001]
[1763565444832,0.4651,3098.5,3097.0,6.57086244]
[1763565445032,0.4651,3098.5,3097.1,0.90699264]
[1763565445538,0.4651,3098.5,3096.9,0.001]
[1763565445740,0.4651,3098.5,3096.5,0.001]
[1763565445741,1.31249664,3098.2,3096.5,0.001]
[1763565446035,0.1999,3096.6,3096.2,0.001]
[1763565446239,0.4651,3096.5,3096.2,0.001]
[1763565446720,0.1999,3096.6,3096.2,0.001]
[1763565446923,0.665,3096.9,3096.2,0.001]
[1763565447431,0.4651,3096.8,3096.2,0.114]
[1763565447834,0.4651,3096.8,3096.3,3.2296612]
[1763565448046,0.4651,3096.8,3096.2,3.34376018]
[1763565448047,0.4651,3096.8,3096.2,0.114]
[1763565448431,0.1999,3096.9,3096.2,6.57353102]
[1763565448607,0.1999,3096.9,3096.2,0.114]
[1763565448806,0.665,3096.9,3096.2,3.34376386]
[1763565449028,0.665,3096.9,3096.2,6.57352937]
[1763565449342,0.665,3096.9,3096.2,0.114]
[1763565449541,0.665,3096.9,3096.2,3.34368136]
[1763565449729,0.665,3096.9,3096.2,6.57344687]
[1763565449930,0.1961,3097.2,3096.2,9.80321238]
[1763565450130,0.1961,3097.2,3096.3,0.406504]
[1763565450330,0.1961,3097.2,3096.3,1.31349664]
[1763565450836,0.4861,3097.1,3096.3,0.001]
[1763565452107,0.4861,3097.1,3095.9,0.001]
[1763565452909,0.50695738,3096.9,3095.9,0.001]
[1763565453420,0.4861,3096.8,3095.9,0.001]
[1763565453612,0.50695738,3096.9,3095.9,0.464104]
[1763565453808,0.002,3097.8,3096.1,1.31249664]
[1763565454050,0.002,3097.8,3096.3,1.31249664]
[1763565454222,0.50668995,3097.5,3096.3,1.31249664]
[1763565454421,0.002,3097.8,3096.5,0.405504]
[1763565454908,0.002,3097.8,3096.6,0.0576]
[1763565455889,0.002,3097.8,3097.0,0.405504]
[1763565456101,0.002,3097.8,3097.2,0.405504]
[1763565456653,0.002,3097.8,3097.0,0.0576]
[1763565456654,0.002,3097.8,3097.3,0.113]
[1763565457468,0.50659667,3097.7,3097.3,0.113]
[1763565457763,0.002,3097.8,3097.3,0.113]
[1763565457764,0.002,3097.8,3097.4,0.463104]
[1763565457973,0.002,3097.8,3097.6,0.90699264]
[1763565458851,0.4693,3097.8,3096.8,0.405504]
[1763565459079,0.002,3097.8,3097.5,0.405504]
[1763565459259,0.002,3097.8,3097.6,0.113]
[1763565459783,0.002,3097.8,3097.0,0.405504]
[1763565459957,0.002,3097.8,3096.9,0.0576]
[1763565459958,0.0012,3097.8,3097.2,0.90699264]
[1763565460163,0.0012,3097.8,3096.6,3.28694831]
[1763565460164,0.4673,3097.7,3095.9,13.03429749]
[1763565460364,0.0012,3097.8,3096.0,5.76441295]
[1763565460770,0.0012,3097.8,3096.2,0.405504]
[1763565461264,0.0012,3097.8,3096.4,0.405504]
[1763565461265,0.50666219,3097.5,3096.4,0.405504]
[1763565461577,0.50666219,3097.5,3096.5,0.113]
[1763565461771,0.97396219,3097.5,3096.6,0.405504]
[1763565461973,0.97396219,3097.5,3096.8,0.90699264]
[1763565462979,0.97396219,3097.5,3096.9,0.113]
[1763565463182,0.4673,3097.4,3096.0,3.22997416]
[1763565463382,0.4673,3097.4,3095.6,0.001]
[1763565463694,0.4673,3097.4,3095.9,6.461122]
[1763565463882,0.4673,3097.4,3096.0,4.13686787]
[1763565464279,0.4673,3097.4,3095.9,3.23106679]
[1763565464510,0.4673,3097.4,3096.0,0.90699264]
[1763565464801,0.4673,3097.4,3095.9,3.23106679]
[1763565464802,0.4673,3097.4,3095.9,0.001]
[1763565465307,0.405504,3097.2,3095.9,0.001]
[1763565465661,0.4673,3097.1,3095.9,0.001]
[1763565466192,0.90699264,3096.8,3095.9,0.001]
[1763565466369,0.7617141,3096.7,3095.9,0.001]
[1763565466614,1.2290141,3096.7,3095.9,0.001]
[1763565466798,0.4673,3096.6,3095.9,0.001]
[1763565467474,0.4673,3096.6,3095.6,0.001]
[1763565467676,0.1845,3095.7,3095.6,0.001]
[1763565467985,0.1845,3095.7,3094.7,1.31249664]
[1763565468211,0.6518,3095.7,3094.7,1.31249664]
[1763565468495,0.1845,3095.7,3094.7,1.31249664]
[1763565468866,0.1845,3097.0,3095.5,0.001]
[1763565468867,0.1845,3096.0,3095.5,0.001]
[1763565469100,0.4673,3096.4,3095.5,0.001]
[1763565469271,0.1845,3095.6,3095.5,0.001]
[1763565469471,0.6518,3095.6,3095.5,0.001]
[1763565469694,0.1845,3095.6,3095.5,0.001]
[1763565470504,0.6518,3095.6,3095.5,0.001]
[1763565471531,0.6518,3095.6,3094.8,0.405504]
[1763565471821,0.6518,3095.6,3094.8,1.31249664]
[1763565472389,0.1845,3095.6,3095.0,0.90699264]
[1763565472611,0.4673,3095.8,3095.0,0.90699264]
[1763565472810,0.4673,3095.8,3094.8,3.74969926]
[1763565473010,0.1845,3094.9,3094.8,0.113]
[1763565473830,0.1845,3095.4,3094.8,0.113]
[1763565474006,0.1845,3095.4,3094.8,3.34422657]
[1763565474390,0.1845,3095.4,3094.5,4.13851688]
[1763565474621,0.50700723,3095.3,3094.7,0.405504]
[1763565474829,0.50700723,3095.3,3094.8,0.0596]
[1763565475633,0.50700723,3095.3,3094.7,0.405504]
[1763565475801,0.50700723,3095.3,3094.9,0.405504]
[1763565476325,0.4673,3096.7,3095.1,0.405504]
[1763565476535,0.4673,3096.7,3095.3,1.31249664]
[1763565476715,0.50690557,3095.7,3095.5,0.405504]
[1763565477029,0.1845,3097.0,3095.5,0.405504]
[1763565477230,0.50685249,3096.3,3095.7,0.405504]
[1763565477427,0.4673,3096.9,3095.5,0.405504]
[1763565477752,0.50685011,3096.2,3095.5,0.405504]
[1763565477888,0.50685011,3096.2,3095.3,0.90699264]
[1763565477889,0.50685011,3096.2,3095.3,1.01999264]
[1763565478089,0.4673,3096.4,3095.4,0.405504]
[1763565478391,0.50688044,3096.0,3095.6,0.90699264]
[1763565478797,0.50688044,3096.0,3095.7,0.465104]
[1763565479120,0.50688044,3096.0,3095.9,0.405504]
[1763565480417,0.4673,3097.5,3095.9,3.69518249]
[1763565480622,0.4673,3097.5,3096.0,0.90699264]
[1763565480933,0.4673,3097.5,3095.9,3.23007849]
[1763565480934,0.50678864,3096.1,3095.9,3.23007849]
[1763565481229,0.04035642,3097.4,3096.0,1.01999264]
[1763565481430,0.50686046,3096.1,3096.0,1.42549664]
[1763565481598,0.4673,3097.3,3096.1,0.405504]
[1763565481798,0.1845,3096.8,3096.1,0.405504]
[1763565482027,0.1845,3096.8,3096.2,0.113]
[1763565482415,0.1845,3096.8,3096.3,0.405504]
[1763565482600,0.4673,3096.7,3094.8,3.23114878]
[1763565482801,0.4673,3096.7,3094.7,6.46266196]
[1763565482802,0.04036685,3096.6,3094.7,6.46266196]
[1763565483021,0.4673,3096.7,3094.4,0.6388871]
[1763565483230,0.50766685,3096.6,3094.5,0.113]
[1763565483397,0.50766685,3096.6,3094.5,1.01999264]
[1763565483398,0.405504,3096.5,3094.5,1.01999264]
[1763565483600,0.04036946,3096.4,3094.6,0.405504]
[1763565483933,0.4673,3096.4,3094.7,0.01595434]
[1763565484133,0.4673,3096.4,3094.6,0.0596]
[1763565484433,0.04037076,3096.3,3094.8,3.23122657]
[1763565484736,0.4673,3096.4,3094.9,0.90699264]
[1763565484935,0.4673,3096.3,3095.0,0.405504]
[1763565485106,0.1845,3096.8,3095.2,0.405504]
[1763565485302,0.1845,3096.8,3095.4,0.405504]
[1763565485519,0.1845,3096.8,3095.0,0.406504]
[1763565485520,0.04036555,3096.7,3095.0,0.406504]
[1763565485717,6.89664836,3096.8,3095.0,0.001]
[1763565485925,0.1845,3095.1,3095.0,0.001]
[1763565486181,0.1845,3095.1,3094.6,0.001]
[1763565486758,0.1845,3095.1,3094.3,0.001]
[1763565487172,0.4673,3095.0,3094.3,0.001]
[1763565487660,0.1853,3093.9,3093.4,0.001]
[1763565488018,0.4566,3093.8,3093.4,0.001]
[1763565488218,0.4566,3093.8,3091.8,0.0654]
[1763565488219,0.405504,3093.7,3091.8,0.001]
[1763565488450,0.17690966,3093.6,3091.8,3.23536186]
[1763565488621,0.4566,3093.5,3091.9,0.90699264]
[1763565488819,0.4566,3093.5,3091.8,0.001]
[1763565490071,0.1853,3091.9,3091.8,0.001]
[1763565490424,0.6419,3091.9,3091.8,0.001]
[1763565490618,0.1853,3091.9,3091.8,0.001]
[1763565490872,0.6419,3091.9,3091.8,0.001]
[1763565491164,0.6419,3091.9,3091.6,0.001]
[1763565491331,0.4566,3091.8,3091.5,0.001]
[1763565491732,0.1853,3091.9,3091.5,0.001]
[1763565492467,0.4566,3091.8,3091.5,0.001]
[1763565492826,0.1853,3091.9,3091.5,0.001]
[1763565493495,0.6419,3091.9,3091.5,0.001]
[1763565493961,0.4566,3091.8,3091.5,0.001]
[1763565494279,0.4566,3091.8,3091.0,0.001]
[1763565494477,0.4566,3091.8,3090.3,0.16884425]
[1763565495494,0.405504,3091.6,3090.3,0.16884425]
[1763565495683,0.405504,3091.4,3090.3,0.16884425]
[1763565495885,0.50782862,3091.5,3090.3,6.64068558]
[1763565496204,0.4566,3091.4,3090.3,0.16884425]
[1763565496772,9.42108732,3091.4,3089.4,0.405504]
[1763565497081,0.1853,3089.8,3088.5,0.0755]
[1763565497396,0.1853,3088.5,3088.4,0.001]
[1763565497709,0.1853,3088.5,3086.4,3.48430757]
[1763565497710,0.1853,3088.5,3086.4,0.2443]
[1763565497873,0.4566,3088.4,3086.4,0.2443]
[1763565498078,0.4566,3088.4,3086.6,0.1698]
[1763565498405,0.4566,3088.4,3083.6,0.2963]
[1763565498406,0.1853,3086.0,3083.6,0.2963]
[1763565498563,0.1853,3085.1,3083.7,3.2428576]
[1763565498763,0.1853,3085.1,3083.4,6.48634624]
[1763565498984,0.1853,3085.1,3083.4,6.73264624]
[1763565499184,0.6419,3085.1,3083.4,3.48947312]
[1763565499397,0.6419,3085.1,3082.8,0.2463]
[1763565499569,1.84595183,3085.0,3082.5,0.65070687]
[1763565499771,0.405504,3084.8,3082.2,0.25318729]
[1763565500073,0.4566,3084.7,3083.1,6.82410975]
[1763565500274,0.4566,3085.0,3083.2,0.2625577]
[1763565500489,0.1853,3085.5,3083.2,0.2463]
[1763565500692,0.4566,3085.4,3083.1,3.33431416]
[1763565500904,0.1853,3083.2,3083.1,0.09083496]
[1763565501417,0.6419,3083.2,3083.1,0.09083496]
[1763565501617,0.4566,3083.8,3083.1,0.09083496]
[1763565501781,1.09229264,3084.9,3083.1,0.09083496]
[1763565501782,0.405504,3084.8,3083.1,0.09083496]
[1763565501985,0.1853,3083.2,3083.1,0.09083496]
[1763565502221,0.99312239,3083.8,3083.1,0.09083496]
[1763565502524,0.50902885,3083.2,3083.1,0.09083496]
[1763565502731,0.1853,3083.3,3083.1,0.09083496]
[1763565502896,0.50903647,3083.2,3083.1,0.09083496]
[1763565503093,1.50215886,3083.2,3083.1,0.09083496]
[1763565503409,8.06349073,3083.2,3079.8,0.345]
[1763565503607,8.06349073,3083.2,3079.9,9.74049411]
[1763565503608,1.31249664,3082.3,3079.9,9.74049411]
[1763565503780,0.90699264,3082.3,3079.9,9.74049411]
[1763565504122,1.23212856,3082.2,3080.0,0.345]
[1763565504429,1.23212856,3082.2,3079.9,9.74049411]
[1763565504430,0.405504,3082.1,3079.9,6.49363545]
[1763565504581,0.405504,3082.0,3080.1,3.24664783]
[1763565505086,0.1889,3080.2,3078.6,0.345]
[1763565505284,0.1889,3081.0,3078.6,1.25199264]
[1763565505486,0.1889,3081.0,3078.1,0.16913236]
[1763565505487,0.1889,3080.6,3078.4,3.33924074]
[1763565505694,0.1889,3081.0,3078.5,0.458]
[1763565505897,0.6573,3081.0,3078.5,0.345]
[1763565506083,0.6573,3081.0,3078.6,0.345]
[1763565506287,0.4684,3080.9,3078.6,0.345]
[1763565506488,0.4684,3080.9,3078.7,0.01636882]
[1763565506794,0.4684,3081.4,3078.9,12.99165284]
[1763565506996,0.4684,3081.4,3079.0,1.65749664]
[1763565507200,0.4684,3081.4,3079.1,0.113]
[1763565507400,0.4684,3081.4,3079.2,0.345]
[1763565507800,0.4684,3081.4,3079.0,0.90699264]
[1763565507988,0.405504,3081.3,3078.7,0.345]
[1763565508214,1.31249664,3081.0,3078.4,6.58768148]
[1763565508414,0.405504,3080.8,3078.4,0.0908]
[1763565508831,1.31249664,3080.4,3078.4,0.0908]
[1763565509137,0.405504,3080.8,3077.2,0.114]
[1763565509138,0.4684,3080.3,3078.5,0.0908]
[1763565509432,0.4684,3080.3,3077.0,3.24985916]
[1763565509433,0.405504,3080.2,3077.0,3.24985916]
[1763565509591,0.405504,3080.2,3077.3,0.345]
[1763565509785,0.4684,3080.3,3077.3,0.345]
[1763565509786,0.4684,3080.1,3077.3,0.345]
[1763565510124,0.4676,3080.1,3077.3,1.25199264]
[1763565510329,0.4676,3080.1,3077.4,0.405504]
[1763565510528,3.24380853,3082.8,3077.6,7.25379699]
[1763565510729,3.24380853,3082.8,3077.5,0.13039627]
[1763565510730,0.1889,3080.9,3078.5,1.31249664]
[1763565511031,0.1889,3080.9,3078.7,0.405504]
[1763565511527,0.1889,3080.9,3078.7,0.751304]
[1763565511830,0.405504,3080.8,3078.7,0.405504]
[1763565512002,0.873904,3080.8,3078.7,0.405504]
[1763565512201,0.405504,3080.6,3078.6,0.0916]
[1763565512391,0.66537966,3080.7,3078.7,0.405504]
[1763565512591,0.1889,3080.9,3078.7,0.405504]
[1763565512592,0.4684,3080.6,3078.7,0.405504]
[1763565512798,0.1889,3080.9,3079.0,0.405504]
[1763565513326,0.1889,3080.9,3078.9,0.90699264]
[1763565513327,0.6573,3080.9,3079.1,0.3458]
[1763565513529,0.4684,3081.5,3079.2,0.405504]
[1763565513693,0.04056597,3081.4,3079.4,0.405504]
[1763565513891,0.4684,3081.5,3078.9,1.36679264]
[1763565514097,0.50956353,3081.0,3079.0,0.751304]
[1763565514526,0.6573,3080.9,3079.0,0.751304]
[1763565514730,0.6573,3080.9,3079.2,0.405504]
[1763565514894,0.4684,3080.8,3079.1,3.24770225]
[1763565515088,0.4684,3080.8,3079.1,6.4954045]
[1763565515304,0.04057519,3080.7,3079.1,3.24770225]
[1763565515524,0.04057519,3080.7,3078.6,0.5514]
[1763565515525,0.44607919,3080.7,3078.6,0.5514]
[1763565515725,0.4684,3080.6,3078.8,0.90699264]
[1763565516426,0.4684,3080.6,3078.9,0.405504]
[1763565516787,0.4684,3080.6,3079.1,1.31249664]
[1763565517314,0.90699264,3081.5,3079.1,1.31249664]
[1763565517315,0.1889,3081.3,3079.3,0.405504]
[1763565517625,0.1889,3081.3,3079.5,0.405504]
[1763565517811,0.1889,3081.3,3079.6,0.3458]
[1763565518227,0.1889,3081.3,3079.7,0.405504]
[1763565518439,0.4669,3081.9,3079.7,0.405504]
[1763565518595,0.4669,3081.9,3079.9,0.405504]
[1763565518911,0.4669,3081.9,3080.2,0.405504]
[1763565519113,0.1889,3082.5,3080.2,0.405504]
[1763565519314,0.50941548,3081.5,3080.4,0.405504]
[1763565519497,0.6558,3082.5,3080.6,0.405504]
[1763565520007,0.50745281,3082.4,3080.6,0.405504]
[1763565520205,0.1889,3082.5,3080.7,0.3458]
[1763565520529,0.002,3081.5,3080.8,0.405504]
[1763565520895,0.002,3081.5,3081.0,1.31249664]
[1763565521204,0.002,3081.5,3081.2,0.405504]
[1763565521729,0.002,3081.9,3081.4,0.405504]
[1763565521914,0.1872,3084.0,3081.9,0.405504]
[1763565522114,0.1872,3084.0,3082.1,0.405504]
[1763565522302,0.1872,3084.0,3082.3,0.405504]
[1763565522502,0.50743309,3083.9,3082.3,0.405504]
[1763565522705,0.4669,3083.9,3082.3,0.405504]
[1763565522893,0.50743309,3083.9,3082.5,0.405504]
[1763565523103,0.4669,3083.9,3082.4,0.90699264]
[1763565523512,0.50743309,3083.9,3082.4,0.90699264]
[1763565523834,0.50743309,3083.9,3082.0,0.114]
[1763565523835,0.50743309,3083.9,3082.1,0.405504]
[1763565524057,0.50743309,3083.9,3082.0,0.90699264]
[1763565524357,0.4669,3083.9,3082.1,0.405504]
[1763565524650,0.50743309,3083.9,3082.1,0.405504]
[1763565524829,0.50743309,3083.9,3082.2,3.24443579]
[1763565525304,0.50743309,3083.9,3082.3,0.90699264]
[1763565525503,0.4669,3083.9,3082.2,0.90699264]
[1763565525738,0.0405344,3083.8,3082.2,0.90699264]
[1763565525922,0.4669,3083.9,3082.2,0.90699264]
[1763565526118,0.4669,3083.8,3082.2,0.90699264]
[1763565526318,0.5074344,3083.8,3082.1,0.90699264]
[1763565526518,0.4669,3083.8,3082.1,0.90699264]
[1763565526943,0.4669,3083.8,3082.2,6.48887158]
[1763565527102,0.04053572,3083.7,3082.3,1.40409664]
[1763565527302,0.04053572,3083.7,3082.3,0.497104]
[1763565527508,0.4669,3083.6,3082.3,0.497104]
[1763565527703,0.4669,3083.6,3082.2,0.90699264]
[1763565527903,0.04053834,3083.5,3082.1,0.90699264]
[1763565528109,0.4669,3083.6,3082.1,0.90699264]
[1763565528411,0.4669,3083.5,3082.2,0.405504]
[1763565528821,0.1872,3084.0,3082.3,0.4314]
[1763565529121,0.04053309,3083.9,3082.5,0.405504]
[1763565529441,0.4669,3083.9,3082.5,0.405504]
[1763565529651,0.1872,3084.0,3082.7,0.405504]
[1763565530014,0.1872,3084.0,3082.5,0.405504]
[1763565530015,0.4669,3083.9,3082.5,0.405504]
[1763565530262,0.4669,3083.9,3082.5,0.745304]
[1763565530564,0.04052652,3084.4,3082.5,0.745304]
[1763565530565,0.1872,3084.3,3082.5,0.745304]
[1763565530782,0.1872,3084.3,3082.5,0.405504]
[1763565530947,0.1872,3084.3,3082.4,0.3398]
[1763565530948,0.50742914,3084.2,3082.4,0.3398]
[1763565531268,0.50742914,3084.2,3082.4,3.24419758]
[1763565531468,0.4669,3084.2,3082.5,0.90699264]
[1763565531670,0.4669,3084.2,3082.4,3.24422527]
[1763565531901,0.04053046,3084.1,3082.5,0.745304]
[1763565532168,0.04053046,3084.1,3082.5,1.31249664]
[1763565532333,0.4669,3084.0,3082.5,1.31249664]
[1763565532533,0.50900392,3083.8,3082.5,1.65229664]
[1763565532734,0.50900392,3083.8,3082.7,0.405504]
[1763565532953,0.50900392,3083.8,3082.9,0.90699264]
[1763565534295,0.50743572,3083.7,3082.3,0.0916]
[1763565534510,0.50743572,3083.7,3082.3,6.5802061]
[1763565534695,0.4669,3083.7,3082.4,0.90699264]
[1763565535017,0.04053703,3083.6,3081.8,3.2448569]
[1763565535164,0.03973703,3083.6,3081.9,0.90699264]
[1763565535360,0.4669,3083.5,3081.9,0.90699264]
[1763565535809,0.4669,3083.5,3082.0,0.405504]
[1763565536014,0.4669,3083.5,3081.9,0.90699264]
[1763565536370,0.4669,3083.5,3082.0,0.405504]
[1763565536899,0.4669,3083.5,3082.2,0.405504]
[1763565537097,0.4669,3083.5,3082.3,3.24433053]
[1763565537303,0.4669,3083.5,3082.3,6.48866106]
[1763565537867,0.4669,3083.5,3082.1,0.0916]
[1763565538067,0.4669,3083.5,3082.1,0.001]
[1763565539368,0.4669,3083.5,3082.1,0.0926]
[1763565539570,0.04053966,3083.4,3082.1,0.001]
[1763565539802,0.4669,3083.5,3082.1,0.001]
[1763565540115,0.4669,3083.4,3082.1,0.001]
[1763565540313,0.97590392,3083.8,3082.3,0.405504]
[1763565540465,0.97590392,3083.8,3082.2,0.0916]
[1763565540667,0.97590392,3083.8,3082.1,0.001]
[1763565540668,0.50743572,3083.7,3082.1,0.0926]
[1763565540897,0.50743572,3083.7,3082.2,0.405504]
[1763565541099,0.50743572,3083.7,3082.3,3.24433053]
[1763565541300,0.50743572,3083.7,3082.2,0.405504]
[1763565541301,0.4669,3083.7,3082.2,0.90699264]
[1763565541583,0.50743572,3083.7,3082.3,0.405504]
[1763565541798,0.04053703,3083.6,3082.3,0.405504]
[1763565542000,0.4669,3083.7,3082.2,1.24679264]
[1763565542339,0.4669,3083.6,3082.1,0.0926]
[1763565542536,0.50743703,3083.6,3082.1,0.001]
[1763565542837,0.592704,3083.5,3082.1,0.001]
[1763565543056,0.92608233,3083.4,3082.1,0.001]
[1763565543189,1.39298233,3083.4,3082.1,0.001]
[1763565543389,0.4669,3083.3,3082.1,0.001]
[1763565543606,0.1872,3083.5,3082.1,0.001]
[1763565543607,0.1872,3083.5,3082.2,0.0916]
[1763565543792,0.4669,3084.1,3082.3,0.405504]
[1763565544225,0.6561,3084.3,3082.5,0.405504]
[1763565544593,0.6561,3084.3,3082.7,0.405504]
[1763565544796,0.002,3084.3,3084.2,0.1777]
[1763565545030,0.002,3084.3,3084.2,3.42003188]
[1763565545328,0.002,3084.3,3084.2,4.32702452]
[1763565545532,0.002,3084.3,3083.4,0.1777]
[1763565545533,0.4689,3084.3,3083.4,0.1777]
[1763565545691,0.4689,3084.3,3083.0,0.114]
[1763565545889,0.97782193,3084.3,3083.1,0.1777]
[1763565546333,0.50742914,3084.2,3082.3,0.3398]
[1763565546503,0.04053046,3084.1,3081.9,0.3398]
[1763565546703,0.4669,3084.2,3081.9,0.3398]
[1763565547015,0.50743046,3084.1,3082.5,0.405504]
[1763565547430,0.4669,3084.1,3082.5,1.65229664]
[1763565547594,0.4669,3084.1,3082.6,0.3398]
[1763565547798,0.4669,3084.1,3082.1,0.001]
[1763565547799,0.1829,3082.7,3082.1,0.001]
[1763565548098,0.1829,3084.0,3082.2,0.90699264]
[1763565548314,0.489,3083.9,3082.2,0.90699264]
[1763565548643,0.489,3083.9,3082.4,0.405504]
[1763565548791,0.1829,3084.0,3082.4,0.405504]
[1763565548792,0.1829,3084.0,3082.6,0.405504]
[1763565548997,0.51092193,3084.3,3082.9,1.31249664]
[1763565549394,0.002,3084.3,3082.9,1.31249664]
[1763565549543,0.002,3084.3,3083.1,0.405504]
[1763565550043,0.002,3084.3,3082.9,0.90699264]
[1763565550044,0.002,3084.3,3083.3,0.405504]
[1763565550212,0.002,3084.3,3083.2,0.5175]
[1763565550213,0.002,3084.3,3083.5,0.405504]
[1763565550610,0.002,3084.3,3083.7,0.405504]
[1763565551009,0.002,3084.3,3083.9,1.31249664]
[1763565551331,0.002,3084.3,3084.1,0.405504]
[1763565551763,0.002,3084.3,3084.2,0.745304]
[1763565552458,0.002,3084.3,3084.2,0.405504]
[1763565552664,0.491,3084.3,3082.5,4.04038951]
[1763565552865,0.491,3084.3,3081.8,4.04138951]
[1763565552866,0.1829,3083.9,3081.8,4.04138951]
[1763565553179,0.90699264,3083.6,3082.1,0.001]
[1763565553327,0.405504,3082.6,3081.8,0.001]
[1763565553528,0.1829,3081.9,3081.5,0.001]
[1763565553759,0.405504,3081.8,3079.4,0.3428]
[1763565553941,1.31249664,3081.5,3078.5,0.001]
[1763565554283,0.405504,3081.3,3078.9,3.33948956]
[1763565554431,0.81607896,3081.4,3078.9,0.0916]
[1763565554432,0.489,3081.2,3078.9,0.0916]
[1763565554631,0.405504,3081.1,3078.5,0.001]
[1763565554866,1.31249664,3080.9,3078.5,0.001]
[1763565555166,0.90699264,3080.8,3078.5,0.001]
[1763565555467,0.90699264,3080.8,3078.6,0.3428]
[1763565555468,0.41528219,3080.7,3078.6,0.3428]
[1763565555627,0.489,3080.7,3078.5,0.001]
[1763565555827,0.489,3080.7,3078.5,0.36097333]
[1763565556044,0.489,3080.7,3078.5,0.3438]
[1763565556246,0.489,3080.7,3078.6,0.405504]
[1763565556671,0.489,3080.7,3078.8,0.405504]
[1763565556910,0.489,3080.7,3079.0,0.405504]
[1763565557042,0.489,3080.7,3079.1,0.90699264]
[1763565557673,0.489,3080.7,3079.3,0.405504]
[1763565558078,0.489,3080.7,3079.3,0.0916]
[1763565559067,0.489,3080.7,3079.5,1.31249664]
[1763565559372,0.90699264,3081.8,3079.5,1.31249664]
[1763565559572,0.489,3081.7,3079.7,0.405504]
[1763565559732,0.489,3081.7,3079.3,0.0916]
[1763565560063,0.405504,3081.6,3079.4,0.90699264]
[1763565560434,0.1829,3081.9,3079.5,0.3436]
[1763565560768,0.1829,3081.9,3079.6,0.405504]
[1763565560927,0.1829,3081.9,3080.0,1.31249664]
[1763565561133,0.1829,3081.9,3080.4,1.31249664]
[1763565561430,0.1829,3082.6,3080.6,1.31249664]
[1763565561635,0.04054229,3083.2,3080.6,1.31249664]
[1763565561964,0.6719,3083.3,3080.8,0.405504]
[1763565562152,0.6719,3083.3,3080.5,5.95247215]
[1763565562153,0.6719,3083.3,3081.2,1.31249664]
[1763565562663,0.6719,3083.3,3081.4,0.405504]
[1763565562830,0.52954229,3083.2,3081.4,0.405504]
[1763565563033,0.52954229,3083.2,3081.4,1.31249664]
[1763565563283,0.489,3083.2,3081.5,0.90699264]
[1763565563630,0.489,3083.2,3081.6,0.405504]
[1763565564131,0.0405436,3083.1,3081.5,0.405504]
[1763565564466,0.0405436,3083.1,3081.0,0.405504]
[1763565564768,0.0405436,3083.1,3081.1,1.02099264]
[1763565564769,0.4739,3083.0,3081.1,1.02099264]
[1763565564934,0.04054623,3082.9,3081.1,1.02099264]
[1763565565135,0.04054623,3082.9,3081.3,1.31249664]
[1763565565436,0.4739,3083.0,3081.3,1.31249664]
[1763565565647,0.4739,3083.0,3081.5,0.405504]
[1763565566050,0.4739,3083.0,3081.6,0.405504]
[1763565566251,0.1829,3083.3,3081.8,0.405504]
[1763565566684,0.51444229,3083.2,3081.8,0.405504]
[1763565566838,0.002,3084.3,3081.9,0.3436]
[1763565567042,0.4739,3084.1,3082.1,12.9781642]
[1763565567261,0.4739,3084.1,3082.2,1.77009664]
[1763565567497,0.002,3084.3,3082.2,1.77009664]
[1763565567498,0.6568,3083.9,3082.2,1.77009664]
[1763565567640,0.6568,3083.9,3082.4,0.405504]
[1763565567842,0.1829,3083.9,3082.3,0.405504]
[1763565568081,0.4739,3083.8,3082.3,0.405504]
[1763565568299,0.04053572,3083.7,3082.3,0.405504]
[1763565568502,0.04053572,3083.7,3081.2,0.0705]
[1763565568503,0.1913,3082.4,3081.2,0.0705]
[1763565568886,1.38089264,3083.6,3081.3,0.3436]
[1763565568887,0.1913,3082.7,3081.3,0.3436]
[1763565569089,0.04055018,3082.6,3081.4,0.90699264]
[1763565569274,0.4739,3082.6,3081.4,0.90699264]
[1763565569616,0.4739,3082.6,3081.2,0.1845]
[1763565569906,0.4739,3082.6,3081.3,0.90699264]
[1763565570219,0.0405515,3082.5,3080.5,6.67390576]
[1763565570372,0.0405515,3082.5,3080.2,3.24649443]
[1763565570373,0.94754414,3082.5,3080.2,6.49308486]
[1763565570718,0.94754414,3082.5,3080.3,0.90699264]
[1763565570719,0.94044884,3082.4,3080.3,0.90699264]